[Event "GrandPrix_29.05"]
[Site "Chess.com"]
[Date "2020.05.29"]
[Round "3"]
[White "yamalchess"]
[Black "AvitalBor"]
[Result "1-0"]
[WhiteElo "2462"]
[BlackElo "2429"]
[TimeControl "600+2"]
[EndTime "10:20:24 PDT"]
[Termination "yamalchess won by resignation"]

1. d4 {[%clk 0:10:01.9]} 1... Nf6 {[%clk 0:09:58.7]} 2. c4 {[%clk 0:10:02.6]}
2... e6 {[%clk 0:09:59.3]} 3. Nc3 {[%clk 0:10:02.3]} 3... d5 {[%clk 0:09:57.3]}
4. Bg5 {[%clk 0:10:01.7]} 4... Be7 {[%clk 0:09:52.8]} 5. e3 {[%clk 0:10:02.3]}
5... Nbd7 {[%clk 0:09:50.4]} 6. Nf3 {[%clk 0:10:01.9]} 6... h6 {[%clk
0:09:50.7]} 7. Bh4 {[%clk 0:10:01.8]} 7... b6 {[%clk 0:09:49.8]} 8. cxd5 {[%clk
0:09:49.6]} 8... exd5 {[%clk 0:09:41.1]} 9. Bb5 {[%clk 0:09:22.5]} 9... Bb7
{[%clk 0:09:25]} 10. Ne5 {[%clk 0:09:20.2]} 10... g5 {[%clk 0:09:11.7]} 11. Bg3
{[%clk 0:09:14.7]} 11... a6 {[%clk 0:08:20.4]} 12. Nc6 {[%clk 0:08:29.6]} 12...
Qc8 {[%clk 0:08:21.4]} 13. Nxe7 {[%clk 0:08:23.7]} 13... Kxe7 {[%clk 0:08:23.3]}
14. Bd3 {[%clk 0:08:16.8]} 14... Nf8 {[%clk 0:08:14]} 15. Qb3 {[%clk 0:08:02.7]}
15... Qd7 {[%clk 0:08:06.1]} 16. h4 {[%clk 0:07:46.4]} 16... Nh5 {[%clk
0:07:23.3]} 17. Qa3+ {[%clk 0:07:00]} 17... Ke8 {[%clk 0:07:24]} 18. Be5 {[%clk
0:06:34.8]} 18... f6 {[%clk 0:07:25.1]} 19. hxg5 {[%clk 0:06:00.2]} 19... fxe5
{[%clk 0:07:25.6]} 20. Rxh5 {[%clk 0:05:59.2]} 20... e4 {[%clk 0:05:32.1]} 21.
Be2 {[%clk 0:05:55.7]} 21... Qg7 {[%clk 0:05:32.1]} 22. gxh6 {[%clk 0:05:24.3]}
22... Rxh6 {[%clk 0:05:34]} 23. O-O-O {[%clk 0:05:07.2]} 23... Rxh5 {[%clk
0:05:27.5]} 24. Bxh5+ {[%clk 0:05:06.5]} 24... Kd7 {[%clk 0:05:27.8]} 25. f3
{[%clk 0:04:42.9]} 25... Ne6 {[%clk 0:05:10.6]} 26. Bg4 {[%clk 0:04:41.1]} 26...
Re8 {[%clk 0:05:11]} 27. Qb3 {[%clk 0:04:13.8]} 27... Qg5 {[%clk 0:05:01.5]} 28.
Ne2 {[%clk 0:03:52.9]} 28... Kd8 {[%clk 0:04:41]} 29. Rh1 {[%clk 0:03:38]} 29...
Bc6 {[%clk 0:03:46.5]} 30. Rh5 {[%clk 0:03:35.9]} 30... Qg7 {[%clk 0:03:26.5]}
31. Rxd5+ {[%clk 0:03:30.3]} 31... Bxd5 {[%clk 0:03:22.6]} 32. Qxd5+ {[%clk
0:03:30.3]} 32... Qd7 {[%clk 0:03:23.8]} 33. Qxd7+ {[%clk 0:03:31]} 33... Kxd7
{[%clk 0:03:23.6]} 34. Nf4 {[%clk 0:03:32.6]} 34... exf3 {[%clk 0:03:22.2]} 1-0

[Event "GrandPrix_29.05"]
[Site "Chess.com"]
[Date "2020.05.29"]
[Round "3"]
[White "ArnaudovP"]
[Black "viktorko131"]
[Result "1-0"]
[WhiteElo "2235"]
[BlackElo "2178"]
[TimeControl "600+2"]
[EndTime "10:20:35 PDT"]
[Termination "ArnaudovP won by resignation"]

1. Nf3 {[%clk 0:10:01.9]} 1... Nf6 {[%clk 0:09:59]} 2. c4 {[%clk 0:10:01.9]}
2... c5 {[%clk 0:09:21.5]} 3. Nc3 {[%clk 0:10:00.4]} 3... g6 {[%clk 0:09:17.6]}
4. d4 {[%clk 0:10:00.3]} 4... cxd4 {[%clk 0:09:17.7]} 5. Nxd4 {[%clk 0:10:02.2]}
5... Bg7 {[%clk 0:09:18.6]} 6. e4 {[%clk 0:10:02.6]} 6... O-O {[%clk 0:09:12.4]}
7. Be2 {[%clk 0:09:57.9]} 7... d6 {[%clk 0:09:10.1]} 8. Be3 {[%clk 0:09:57.6]}
8... Nc6 {[%clk 0:09:07.8]} 9. O-O {[%clk 0:09:56.8]} 9... Bd7 {[%clk
0:09:03.3]} 10. h3 {[%clk 0:09:56.3]} 10... Nxd4 {[%clk 0:09:01]} 11. Bxd4
{[%clk 0:09:56.2]} 11... Bc6 {[%clk 0:09:02.5]} 12. Qc2 {[%clk 0:09:56.2]} 12...
a5 {[%clk 0:07:47.6]} 13. Rad1 {[%clk 0:09:54.1]} 13... Nd7 {[%clk 0:07:42]} 14.
Bxg7 {[%clk 0:09:53.5]} 14... Kxg7 {[%clk 0:07:42.4]} 15. Bg4 {[%clk 0:09:55]}
15... Ne5 {[%clk 0:06:03.1]} 16. c5 {[%clk 0:09:53.9]} 16... f5 {[%clk 0:02:56]}
17. exf5 {[%clk 0:09:46.9]} 17... h5 {[%clk 0:02:56.5]} 18. Be2 {[%clk
0:09:36.8]} 18... Rxf5 {[%clk 0:02:44.1]} 19. f4 {[%clk 0:09:33.5]} 19... Nf7
{[%clk 0:02:29.4]} 20. Bd3 {[%clk 0:09:09.4]} 20... Rf6 {[%clk 0:01:47.5]} 21.
Be4 {[%clk 0:08:42.5]} 21... Rc8 {[%clk 0:01:08.6]} 22. Kh1 {[%clk 0:08:08.2]}
22... Nh6 {[%clk 0:00:06]} 23. cxd6 {[%clk 0:07:54.8]} 23... Rxd6 {[%clk
0:00:05.2]} 24. Bxg6 {[%clk 0:07:43.1]} 24... Rxg6 {[%clk 0:00:03]} 25. Rxd8
{[%clk 0:07:38.6]} 25... Rxd8 {[%clk 0:00:04.9]} 26. Rf2 {[%clk 0:07:29.7]}
26... e6 {[%clk 0:00:02.8]} 27. Ne4 {[%clk 0:07:21.6]} 27... Nf5 {[%clk
0:00:03.8]} 28. Ng5 {[%clk 0:07:18.9]} 28... h4 {[%clk 0:00:04]} 29. Nxe6+
{[%clk 0:07:09]} 29... Rxe6 {[%clk 0:00:04.3]} 30. Qxf5 {[%clk 0:07:08.4]} 30...
Re1+ {[%clk 0:00:04.6]} 31. Kh2 {[%clk 0:07:09.2]} 31... Rdd1 {[%clk 0:00:02.7]}
32. Qg5+ {[%clk 0:07:06.1]} 32... Kf7 {[%clk 0:00:02.9]} 33. Qxh4 {[%clk
0:06:59.2]} 33... Rh1+ {[%clk 0:00:04.4]} 34. Kg3 {[%clk 0:06:59.4]} 34... Rd3+
{[%clk 0:00:06.3]} 35. Kg4 {[%clk 0:06:55.6]} 35... Bd7+ {[%clk 0:00:06.4]} 36.
Kg5 {[%clk 0:06:55.3]} 36... Re1 {[%clk 0:00:03.6]} 37. Qh7+ {[%clk 0:06:54.5]}
37... Kf8 {[%clk 0:00:02.6]} 38. Qxd3 {[%clk 0:06:53.8]} 1-0

[Event "GrandPrix_29.05"]
[Site "Chess.com"]
[Date "2020.05.29"]
[Round "3"]
[White "DrVelja"]
[Black "Zadar321"]
[Result "1-0"]
[WhiteElo "2155"]
[BlackElo "1872"]
[TimeControl "600+2"]
[EndTime "10:20:51 PDT"]
[Termination "DrVelja won by resignation"]

1. e4 {[%clk 0:10:01.9]} 1... c5 {[%clk 0:09:56.9]} 2. Nf3 {[%clk 0:10:02.7]}
2... d6 {[%clk 0:09:57.1]} 3. d4 {[%clk 0:10:04]} 3... cxd4 {[%clk 0:09:57.8]}
4. Nxd4 {[%clk 0:10:05.9]} 4... Nf6 {[%clk 0:09:58.8]} 5. Nc3 {[%clk 0:10:07.6]}
5... Nc6 {[%clk 0:09:57.8]} 6. Bg5 {[%clk 0:10:08]} 6... g6 {[%clk 0:09:58.3]}
7. Bxf6 {[%clk 0:10:03.4]} 7... exf6 {[%clk 0:09:58.9]} 8. Bb5 {[%clk
0:10:02.1]} 8... Bd7 {[%clk 0:09:59.2]} 9. Qd3 {[%clk 0:08:42.3]} 9... Bg7
{[%clk 0:09:58.6]} 10. O-O-O {[%clk 0:08:41.4]} 10... O-O {[%clk 0:09:57.8]} 11.
Nb3 {[%clk 0:08:32.2]} 11... Be6 {[%clk 0:08:55.9]} 12. Qxd6 {[%clk 0:07:48.6]}
12... Qb6 {[%clk 0:08:55.6]} 13. Qc5 {[%clk 0:06:00.8]} 13... f5 {[%clk
0:08:30.2]} 14. exf5 {[%clk 0:05:17.9]} 14... Bxf5 {[%clk 0:08:24]} 15. Nd5
{[%clk 0:04:23.2]} 15... Qxc5 {[%clk 0:06:36.2]} 16. Nxc5 {[%clk 0:04:25.1]}
16... Nd4 {[%clk 0:06:12]} 17. Ne7+ {[%clk 0:03:40.8]} 17... Kh8 {[%clk
0:06:12.9]} 18. Nxf5 {[%clk 0:03:42.4]} 18... gxf5 {[%clk 0:06:13.8]} 19. Bd3
{[%clk 0:03:28.5]} 19... Rfc8 {[%clk 0:06:06.3]} 20. Nb3 {[%clk 0:03:27.2]}
20... Nxb3+ {[%clk 0:05:54.3]} 21. axb3 {[%clk 0:03:29.1]} 21... Rc5 {[%clk
0:05:55.4]} 22. Rhe1 {[%clk 0:03:21.9]} 22... a5 {[%clk 0:05:45.2]} 23. Re7
{[%clk 0:03:05.4]} 23... a4 {[%clk 0:05:46.5]} 24. b4 {[%clk 0:03:02.6]} 24...
a3 {[%clk 0:05:35.3]} 25. bxc5 {[%clk 0:02:31.1]} 25... axb2+ {[%clk 0:05:27]}
26. Kd2 {[%clk 0:02:31.5]} 26... Bh6+ {[%clk 0:05:09.5]} 27. Ke2 {[%clk
0:02:19.8]} 27... Bc1 {[%clk 0:04:15.9]} 28. Rxb7 {[%clk 0:02:11.1]} 28... Ra1
{[%clk 0:04:11.2]} 29. c6 {[%clk 0:01:59.8]} 29... Bf4 {[%clk 0:04:08.4]} 30.
Rxb2 {[%clk 0:01:58.1]} 1-0

[Event "GrandPrix_29.05"]
[Site "Chess.com"]
[Date "2020.05.29"]
[Round "3"]
[White "HElissalt"]
[Black "Hakob-Hakobyan-Arm"]
[Result "0-1"]
[WhiteElo "1802"]
[BlackElo "2113"]
[TimeControl "600+2"]
[EndTime "10:21:00 PDT"]
[Termination "Hakob-Hakobyan-Arm won by resignation"]

1. d4 {[%clk 0:10:01.9]} 1... d5 {[%clk 0:09:58.6]} 2. Bf4 {[%clk 0:10:00]} 2...
Nf6 {[%clk 0:09:59.3]} 3. e3 {[%clk 0:09:59.7]} 3... c5 {[%clk 0:10:00.6]} 4. c3
{[%clk 0:10:00.5]} 4... Nc6 {[%clk 0:10:01.7]} 5. Nd2 {[%clk 0:10:01.6]} 5... g6
{[%clk 0:10:01.6]} 6. Bd3 {[%clk 0:10:02]} 6... Bg7 {[%clk 0:10:02.3]} 7. Ngf3
{[%clk 0:10:02.8]} 7... Nd7 {[%clk 0:10:03.7]} 8. O-O {[%clk 0:09:55.3]} 8...
O-O {[%clk 0:10:04.9]} 9. h3 {[%clk 0:09:05.2]} 9... e5 {[%clk 0:10:05.1]} 10.
dxe5 {[%clk 0:09:04.7]} 10... Ndxe5 {[%clk 0:10:07]} 11. Nxe5 {[%clk 0:09:05.6]}
11... Nxe5 {[%clk 0:10:08.9]} 12. Bxe5 {[%clk 0:09:06.7]} 12... Bxe5 {[%clk
0:10:09.4]} 13. Nf3 {[%clk 0:08:53.3]} 13... Bg7 {[%clk 0:10:10]} 14. e4 {[%clk
0:08:49]} 14... Be6 {[%clk 0:09:58.1]} 15. Re1 {[%clk 0:08:14.5]} 15... dxe4
{[%clk 0:09:45.3]} 16. Bxe4 {[%clk 0:08:14.6]} 16... Qb6 {[%clk 0:09:45.4]} 17.
Qc2 {[%clk 0:07:56.3]} 17... Rad8 {[%clk 0:09:37.4]} 18. Ng5 {[%clk 0:07:24.2]}
18... Bc8 {[%clk 0:09:20.7]} 19. Rad1 {[%clk 0:07:10.6]} 19... h6 {[%clk
0:09:19.9]} 20. Nf3 {[%clk 0:07:06.8]} 20... Be6 {[%clk 0:09:09.1]} 21. b3
{[%clk 0:06:43.7]} 21... c4 {[%clk 0:08:52.5]} 22. bxc4 {[%clk 0:06:39.7]} 22...
Bxc4 {[%clk 0:07:24.3]} 23. Rb1 {[%clk 0:06:36.9]} 23... Qa6 {[%clk 0:07:02.5]}
24. Rxb7 {[%clk 0:06:08.1]} 24... f5 {[%clk 0:06:07.2]} 25. Bxf5 {[%clk
0:04:23.3]} 25... Qxb7 {[%clk 0:05:52.2]} 26. Bxg6 {[%clk 0:04:23.5]} 26... Qd5
{[%clk 0:05:35.9]} 27. Be4 {[%clk 0:04:14.5]} 27... Qd6 {[%clk 0:05:33.5]} 28.
Qa4 {[%clk 0:04:09.4]} 28... Bf7 {[%clk 0:05:21.1]} 29. c4 {[%clk 0:03:54.9]}
29... Rfe8 {[%clk 0:05:15.4]} 30. Qc2 {[%clk 0:03:45.1]} 30... Rc8 {[%clk
0:05:03.2]} 31. Bh7+ {[%clk 0:03:09.7]} 31... Kh8 {[%clk 0:05:01.2]} 32. Rxe8+
{[%clk 0:02:57.7]} 32... Rxe8 {[%clk 0:05:03.1]} 33. c5 {[%clk 0:02:57.4]} 33...
Qd5 {[%clk 0:04:56.3]} 34. Bd3 {[%clk 0:02:48.3]} 34... Rc8 {[%clk 0:04:49.9]}
35. Qe2 {[%clk 0:02:17.3]} 35... Rxc5 {[%clk 0:04:43.5]} 36. Be4 {[%clk
0:02:07.5]} 36... Qxa2 {[%clk 0:04:29.5]} 37. Qd1 {[%clk 0:02:06.1]} 37... Qa1
{[%clk 0:04:28.5]} 0-1

[Event "GrandPrix_29.05"]
[Site "Chess.com"]
[Date "2020.05.29"]
[Round "3"]
[White "Y0ung_Capablanca"]
[Black "Karateloru"]
[Result "0-1"]
[WhiteElo "2134"]
[BlackElo "2224"]
[TimeControl "600+2"]
[EndTime "10:21:03 PDT"]
[Termination "Karateloru won by resignation"]

1. e4 {[%clk 0:10:01.9]} 1... c5 {[%clk 0:09:59.8]} 2. Nf3 {[%clk 0:10:01.2]}
2... e6 {[%clk 0:10:00.1]} 3. g3 {[%clk 0:10:01.7]} 3... Nc6 {[%clk 0:09:58.8]}
4. Bg2 {[%clk 0:09:59.9]} 4... Nge7 {[%clk 0:09:46.3]} 5. O-O {[%clk 0:10:00.5]}
5... d5 {[%clk 0:09:46.8]} 6. Qe2 {[%clk 0:10:00.9]} 6... d4 {[%clk 0:09:45.8]}
7. d3 {[%clk 0:10:01.2]} 7... Ng6 {[%clk 0:09:46.7]} 8. h4 {[%clk 0:10:00.6]}
8... Be7 {[%clk 0:09:41.7]} 9. Nbd2 {[%clk 0:09:57.5]} 9... e5 {[%clk
0:09:32.6]} 10. Nh2 {[%clk 0:09:47.6]} 10... Bd6 {[%clk 0:08:57.8]} 11. Nc4
{[%clk 0:09:44.3]} 11... O-O {[%clk 0:08:56.7]} 12. h5 {[%clk 0:09:35.8]} 12...
Nge7 {[%clk 0:08:57.4]} 13. f4 {[%clk 0:09:35.9]} 13... b5 {[%clk 0:08:49.7]}
14. Nxd6 {[%clk 0:09:34]} 14... Qxd6 {[%clk 0:08:49.1]} 15. a4 {[%clk
0:09:33.7]} 15... b4 {[%clk 0:08:40.1]} 16. Ng4 {[%clk 0:09:13.1]} 16... Bxg4
{[%clk 0:07:48.9]} 17. Qxg4 {[%clk 0:09:12]} 17... b3 {[%clk 0:07:46.4]} 18. Bd2
{[%clk 0:08:23.5]} 18... bxc2 {[%clk 0:07:41.5]} 19. Rac1 {[%clk 0:07:58.8]}
19... c4 {[%clk 0:07:41.3]} 20. Rxc2 {[%clk 0:08:00.3]} 20... cxd3 {[%clk
0:07:41.6]} 21. Rc4 {[%clk 0:08:01.5]} 21... a5 {[%clk 0:07:34.3]} 22. f5 {[%clk
0:07:48.7]} 22... Kh8 {[%clk 0:07:19.1]} 23. h6 {[%clk 0:07:27.8]} 23... Rg8
{[%clk 0:06:55.4]} 24. Qh4 {[%clk 0:07:03.1]} 24... f6 {[%clk 0:06:26.5]} 25.
Rf3 {[%clk 0:06:22.3]} 25... Rab8 {[%clk 0:06:17.4]} 26. hxg7+ {[%clk
0:06:17.5]} 26... Rxg7 {[%clk 0:06:17.9]} 27. Rxd3 {[%clk 0:06:18.2]} 27... Rxb2
{[%clk 0:06:16.4]} 28. Bh6 {[%clk 0:06:18.3]} 28... Rg8 {[%clk 0:05:59]} 29. g4
{[%clk 0:06:18.5]} 29... Nb4 {[%clk 0:05:38.7]} 30. Rh3 {[%clk 0:06:12.4]} 30...
Nbd5 {[%clk 0:04:38.6]} 31. Bc1 {[%clk 0:05:50.4]} 31... Rxg2+ {[%clk
0:04:32.6]} 32. Kxg2 {[%clk 0:05:51.4]} 32... Rg7 {[%clk 0:04:33.9]} 33. Rb3
{[%clk 0:04:55.8]} 33... Ne3+ {[%clk 0:02:26.4]} 34. Bxe3 {[%clk 0:04:42.2]}
34... dxe3 {[%clk 0:02:28.3]} 35. Rxe3 {[%clk 0:04:10.3]} 35... Qd2+ {[%clk
0:02:27.3]} 36. Qf2 {[%clk 0:04:11.8]} 36... Rxg4+ {[%clk 0:02:27.5]} 37. Rg3
{[%clk 0:04:13.3]} 37... Rxg3+ {[%clk 0:02:26.1]} 38. Kxg3 {[%clk 0:04:14.6]}
38... Qd3+ {[%clk 0:02:27]} 39. Kg4 {[%clk 0:04:14.7]} 39... Qxc4 {[%clk
0:02:27.6]} 0-1

[Event "GrandPrix_29.05"]
[Site "Chess.com"]
[Date "2020.05.29"]
[Round "3"]
[White "chessdjw"]
[Black "ZEN-22"]
[Result "1-0"]
[WhiteElo "2252"]
[BlackElo "2079"]
[TimeControl "600+2"]
[EndTime "10:21:04 PDT"]
[Termination "chessdjw won by resignation"]

1. e4 {[%clk 0:10:01.9]} 1... d6 {[%clk 0:09:48]} 2. d4 {[%clk 0:10:01.9]} 2...
Nd7 {[%clk 0:09:41.8]} 3. Nc3 {[%clk 0:09:24.5]} 3... e5 {[%clk 0:09:01]} 4. Nf3
{[%clk 0:09:24]} 4... Ngf6 {[%clk 0:09:00.9]} 5. Bc4 {[%clk 0:09:23.9]} 5... Be7
{[%clk 0:09:01.4]} 6. a4 {[%clk 0:09:24.7]} 6... O-O {[%clk 0:09:01.1]} 7. O-O
{[%clk 0:09:25.5]} 7... a5 {[%clk 0:08:45.7]} 8. h3 {[%clk 0:09:14.9]} 8... c6
{[%clk 0:08:36.1]} 9. Re1 {[%clk 0:09:03.3]} 9... Re8 {[%clk 0:08:07.5]} 10. Be3
{[%clk 0:08:30]} 10... exd4 {[%clk 0:07:38.4]} 11. Bxd4 {[%clk 0:08:11.5]} 11...
Bf8 {[%clk 0:07:32.6]} 12. Ng5 {[%clk 0:07:26.3]} 12... d5 {[%clk 0:06:02.7]}
13. exd5 {[%clk 0:07:23.2]} 13... Rxe1+ {[%clk 0:06:03.1]} 14. Qxe1 {[%clk
0:07:24]} 14... cxd5 {[%clk 0:06:02.5]} 15. Nxd5 {[%clk 0:05:30]} 15... Nxd5
{[%clk 0:05:46.2]} 16. Nxf7 {[%clk 0:05:30.6]} 16... N7b6 {[%clk 0:04:59.9]} 17.
Nxd8 {[%clk 0:05:07.3]} 17... Nxc4 {[%clk 0:05:00.3]} 18. Qe4 {[%clk 0:04:58.2]}
18... Ne7 {[%clk 0:04:46.9]} 19. Ne6 {[%clk 0:03:47.3]} 19... Nd6 {[%clk
0:04:41.3]} 20. Qe2 {[%clk 0:03:09.8]} 20... Nef5 {[%clk 0:04:23.6]} 21. Bc5
{[%clk 0:02:59]} 21... Be7 {[%clk 0:04:07.8]} 22. Nc7 {[%clk 0:02:50]} 22... Bd7
{[%clk 0:03:43.1]} 23. Nxa8 {[%clk 0:02:45.7]} 23... Kf7 {[%clk 0:03:40.7]} 24.
Nb6 {[%clk 0:02:44.2]} 24... Bc6 {[%clk 0:03:42.1]} 25. Nc4 {[%clk 0:02:43.3]}
25... Ne4 {[%clk 0:03:33]} 26. Bxe7 {[%clk 0:02:42.3]} 26... Nd4 {[%clk
0:03:34.6]} 27. Qh5+ {[%clk 0:02:39.8]} 27... Kxe7 {[%clk 0:03:34.5]} 28. Qe5+
{[%clk 0:02:39.9]} 28... Ne6 {[%clk 0:03:35]} 29. Re1 {[%clk 0:02:40]} 29... Kf7
{[%clk 0:03:15.9]} 30. Rxe4 {[%clk 0:02:38.3]} 1-0

[Event "GrandPrix_29.05"]
[Site "Chess.com"]
[Date "2020.05.29"]
[Round "3"]
[White "GeorgMeier"]
[Black "Volodar_Murzin"]
[Result "1/2-1/2"]
[WhiteElo "2630"]
[BlackElo "2478"]
[TimeControl "600+2"]
[EndTime "10:21:08 PDT"]
[Termination "Game drawn by repetition"]

1. Nf3 {[%clk 0:10:01.9]} 1... Nf6 {[%clk 0:09:59.8]} 2. g3 {[%clk 0:10:03.3]}
2... g6 {[%clk 0:09:59.9]} 3. Bg2 {[%clk 0:10:04.5]} 3... Bg7 {[%clk 0:10:01.8]}
4. O-O {[%clk 0:10:06.1]} 4... O-O {[%clk 0:10:03.1]} 5. d4 {[%clk 0:10:07.7]}
5... d6 {[%clk 0:10:04.2]} 6. b3 {[%clk 0:10:09.1]} 6... Nbd7 {[%clk 0:10:05.6]}
7. Bb2 {[%clk 0:10:10.2]} 7... Re8 {[%clk 0:10:07.1]} 8. c4 {[%clk 0:10:04.8]}
8... e5 {[%clk 0:10:05.4]} 9. dxe5 {[%clk 0:10:06]} 9... Ng4 {[%clk 0:10:04.5]}
10. Nc3 {[%clk 0:10:02]} 10... dxe5 {[%clk 0:09:56.2]} 11. Ne4 {[%clk
0:09:11.4]} 11... Ngf6 {[%clk 0:08:46.9]} 12. Nxf6+ {[%clk 0:08:21.9]} 12...
Qxf6 {[%clk 0:08:46]} 13. Qc2 {[%clk 0:08:05.2]} 13... Qe7 {[%clk 0:08:37.1]}
14. Rad1 {[%clk 0:07:08.8]} 14... a5 {[%clk 0:07:49.8]} 15. Qc1 {[%clk
0:06:42.9]} 15... Bf8 {[%clk 0:07:19]} 16. Bc3 {[%clk 0:05:26.9]} 16... f6
{[%clk 0:06:46.5]} 17. h4 {[%clk 0:05:10.3]} 17... Nc5 {[%clk 0:06:16]} 18. Ne1
{[%clk 0:04:45.6]} 18... c6 {[%clk 0:06:01.3]} 19. Nd3 {[%clk 0:04:32.5]} 19...
Bg4 {[%clk 0:05:56.9]} 20. Qe3 {[%clk 0:03:48.9]} 20... Nxd3 {[%clk 0:04:02.6]}
21. Rxd3 {[%clk 0:03:47.4]} 21... Qf7 {[%clk 0:04:02.4]} 22. Rd2 {[%clk
0:03:19.9]} 22... a4 {[%clk 0:03:48.9]} 23. Rfd1 {[%clk 0:03:10.8]} 23... axb3
{[%clk 0:03:44.3]} 24. axb3 {[%clk 0:03:12.7]} 24... Ra3 {[%clk 0:03:44.3]} 25.
Qb6 {[%clk 0:02:58.2]} 25... Ra6 {[%clk 0:03:25.1]} 26. Qe3 {[%clk 0:02:58.1]}
26... Ra3 {[%clk 0:03:25.7]} 27. Bb2 {[%clk 0:02:45.9]} 27... Ra2 {[%clk
0:03:25.6]} 28. Bc3 {[%clk 0:02:12]} 28... Ra3 {[%clk 0:03:26.2]} 1/2-1/2

[Event "GrandPrix_29.05"]
[Site "Chess.com"]
[Date "2020.05.29"]
[Round "3"]
[White "Tokarev_Sergey"]
[Black "Ward-Tsh"]
[Result "0-1"]
[WhiteElo "2010"]
[BlackElo "2177"]
[TimeControl "600+2"]
[EndTime "10:21:17 PDT"]
[Termination "Ward-Tsh won by resignation"]

1. c4 {[%clk 0:10:00.4]} 1... c5 {[%clk 0:09:57.8]} 2. Nc3 {[%clk 0:09:59.2]}
2... Nc6 {[%clk 0:09:58.8]} 3. e4 {[%clk 0:09:59.5]} 3... g6 {[%clk 0:09:52.3]}
4. g3 {[%clk 0:09:59.5]} 4... Bg7 {[%clk 0:09:53.5]} 5. Bg2 {[%clk 0:10:00.3]}
5... e6 {[%clk 0:09:49.2]} 6. Nge2 {[%clk 0:10:01.1]} 6... Nge7 {[%clk
0:09:50.2]} 7. O-O {[%clk 0:10:01.1]} 7... O-O {[%clk 0:09:50.8]} 8. d3 {[%clk
0:10:02.2]} 8... a6 {[%clk 0:09:37.3]} 9. Be3 {[%clk 0:09:55.6]} 9... Nd4 {[%clk
0:09:37]} 10. Rb1 {[%clk 0:09:21.3]} 10... Nec6 {[%clk 0:09:37.8]} 11. a3 {[%clk
0:09:20.2]} 11... Qe7 {[%clk 0:09:03.3]} 12. Qd2 {[%clk 0:08:20]} 12... Rb8
{[%clk 0:09:02.1]} 13. b4 {[%clk 0:08:14.1]} 13... d6 {[%clk 0:08:48.3]} 14. b5
{[%clk 0:07:36.7]} 14... axb5 {[%clk 0:08:46.1]} 15. cxb5 {[%clk 0:07:38.6]}
15... Nxe2+ {[%clk 0:08:43.6]} 16. Nxe2 {[%clk 0:07:35.7]} 16... Ne5 {[%clk
0:08:30.7]} 17. h3 {[%clk 0:07:25.5]} 17... b6 {[%clk 0:08:20.8]} 18. f4 {[%clk
0:07:23.6]} 18... Nd7 {[%clk 0:08:21.9]} 19. f5 {[%clk 0:07:23.7]} 19... exf5
{[%clk 0:08:18.9]} 20. exf5 {[%clk 0:07:25.6]} 20... Re8 {[%clk 0:08:19.9]} 21.
Be4 {[%clk 0:06:28]} 21... d5 {[%clk 0:08:18.8]} 22. Bg5 {[%clk 0:06:28.3]}
22... Nf6 {[%clk 0:07:50.6]} 23. fxg6 {[%clk 0:05:30.8]} 23... dxe4 {[%clk
0:07:11.5]} 24. gxf7+ {[%clk 0:05:10.9]} 24... Qxf7 {[%clk 0:07:02.9]} 25. Bxf6
{[%clk 0:05:05.6]} 25... Bxf6 {[%clk 0:06:51.6]} 26. dxe4 {[%clk 0:03:17.1]}
26... Bxh3 {[%clk 0:06:25.9]} 27. Rf2 {[%clk 0:03:16.2]} 27... Qg7 {[%clk
0:05:59]} 28. Kh2 {[%clk 0:03:09.2]} 28... Be6 {[%clk 0:05:58.3]} 29. Nf4 {[%clk
0:02:52]} 29... Rbd8 {[%clk 0:05:50.3]} 30. Qe2 {[%clk 0:02:35.6]} 30... Bf7
{[%clk 0:05:50.8]} 31. Rbf1 {[%clk 0:02:32.3]} 31... Bd4 {[%clk 0:05:50.2]} 32.
Rf3 {[%clk 0:02:23.6]} 32... Re7 {[%clk 0:05:44.5]} 33. a4 {[%clk 0:01:53.7]}
33... Rde8 {[%clk 0:05:40]} 34. Qg2 {[%clk 0:01:42.5]} 34... Qh6+ {[%clk
0:05:35.2]} 35. Nh3 {[%clk 0:01:43.9]} 35... Bc4 {[%clk 0:05:17.3]} 36. Rd1
{[%clk 0:01:29.3]} 36... Rxe4 {[%clk 0:05:14.6]} 0-1

[Event "GrandPrix_29.05"]
[Site "Chess.com"]
[Date "2020.05.29"]
[Round "3"]
[White "Hrant_ChessMood"]
[Black "N4700000"]
[Result "1-0"]
[WhiteElo "2820"]
[BlackElo "2498"]
[TimeControl "600+2"]
[EndTime "10:21:27 PDT"]
[Termination "Hrant_ChessMood won by resignation"]

1. d4 {[%clk 0:10:01.9]} 1... Nf6 {[%clk 0:09:51.1]} 2. c4 {[%clk 0:10:02.1]}
2... g6 {[%clk 0:09:51.5]} 3. Nc3 {[%clk 0:10:01.8]} 3... Bg7 {[%clk 0:09:52.3]}
4. e4 {[%clk 0:10:02.2]} 4... O-O {[%clk 0:09:53]} 5. f3 {[%clk 0:10:01]} 5...
d6 {[%clk 0:09:52.1]} 6. Nge2 {[%clk 0:10:01.4]} 6... b6 {[%clk 0:09:45.7]} 7.
Be3 {[%clk 0:09:51.4]} 7... c5 {[%clk 0:09:43.8]} 8. d5 {[%clk 0:09:35.3]} 8...
e6 {[%clk 0:09:32.1]} 9. Ng3 {[%clk 0:09:07.6]} 9... exd5 {[%clk 0:09:28.6]} 10.
cxd5 {[%clk 0:09:08.1]} 10... Ba6 {[%clk 0:09:15.1]} 11. Bxa6 {[%clk 0:08:58.1]}
11... Nxa6 {[%clk 0:09:17]} 12. O-O {[%clk 0:08:57.4]} 12... Re8 {[%clk
0:09:14]} 13. Qd2 {[%clk 0:08:19.7]} 13... Nc7 {[%clk 0:09:07.4]} 14. a4 {[%clk
0:08:16.2]} 14... a6 {[%clk 0:09:00.3]} 15. Bh6 {[%clk 0:07:42.8]} 15... Bh8
{[%clk 0:08:57]} 16. Qf4 {[%clk 0:06:57.2]} 16... Re5 {[%clk 0:07:48.3]} 17. Qh4
{[%clk 0:06:38.6]} 17... Nfe8 {[%clk 0:06:47]} 18. Qxd8 {[%clk 0:05:25.9]} 18...
Rxd8 {[%clk 0:06:48.9]} 19. Bf4 {[%clk 0:05:27.2]} 19... Re7 {[%clk 0:06:47.3]}
20. Bg5 {[%clk 0:05:13.3]} 20... Bf6 {[%clk 0:06:41.8]} 21. Bxf6 {[%clk
0:05:07.1]} 21... Nxf6 {[%clk 0:06:43.7]} 22. Rfb1 {[%clk 0:04:55.2]} 22... Nd7
{[%clk 0:06:26.7]} 23. b4 {[%clk 0:04:50.6]} 23... c4 {[%clk 0:05:48.5]} 24.
Nge2 {[%clk 0:04:30.1]} 24... Ne5 {[%clk 0:05:41.3]} 25. Nd4 {[%clk 0:04:28.7]}
25... Rde8 {[%clk 0:05:32]} 26. b5 {[%clk 0:04:12.8]} 26... a5 {[%clk
0:05:26.7]} 27. Nc6 {[%clk 0:04:11.4]} 27... Rd7 {[%clk 0:05:19.5]} 28. Rd1
{[%clk 0:03:58.8]} 28... Nd3 {[%clk 0:05:08.8]} 29. Nb1 {[%clk 0:03:20.1]} 29...
f5 {[%clk 0:04:57.4]} 30. Na3 {[%clk 0:02:49.2]} 30... Nb2 {[%clk 0:04:41.9]}
31. Rd4 {[%clk 0:02:38.2]} 31... fxe4 {[%clk 0:04:32.2]} 32. fxe4 {[%clk
0:02:27]} 32... Rf7 {[%clk 0:04:05]} 33. Nxc4 {[%clk 0:02:23.3]} 33... Nxc4
{[%clk 0:04:04.2]} 34. Rxc4 {[%clk 0:02:25.2]} 34... Rf4 {[%clk 0:04:03.2]} 35.
Nxa5 {[%clk 0:02:05.1]} 35... Nxd5 {[%clk 0:03:57.5]} 36. exd5 {[%clk
0:02:03.7]} 1-0